bitfinex/quotes_SOLUSD_20250210
["timestamp","ask_amount","ask_price","bid_price","bid_amount"]
[1739226157000,0.03,200.25,200.24,20.0]
[1739226158903,0.03,200.25,200.24,24.994]
[1739226160026,0.03,200.26,200.24,106.194]
[1739226160191,0.03,200.26,200.25,0.74875407]
[1739226160391,0.03,200.26,200.25,14.1606026]
[1739226161112,0.0001,200.26,200.25,19.1543026]
[1739226161315,0.03,200.3,200.29,20.0]
[1739226161612,0.03,200.3,200.29,20.74860985]
[1739226162398,0.03,200.3,200.29,20.0]
[1739226162711,0.03,200.3,200.29,20.74865743]
[1739226163095,0.03,200.3,200.29,25.74135743]
[1739226163291,0.03,200.3,200.29,4.9927]
[1739226170630,0.03,200.3,200.29,24.9927]
[1739226170823,0.03,200.3,200.29,38.40454853]
[1739226171306,0.03,200.3,200.29,24.9927]
[1739226173324,0.03,200.3,200.28,81.2]
[1739226174628,0.03,200.3,200.28,86.1929]
[1739226174922,0.03,200.3,200.28,81.2]
[1739226175103,0.03,200.3,200.24,4.9937]
[1739226176714,0.03,200.3,200.26,20.0]
[1739226177925,0.03,200.3,200.24,4.994]
[1739226179135,0.03,200.3,200.27,0.063]
[1739226180641,0.5510006,200.3,200.27,0.063]
[1739226181023,4.9927,200.29,200.27,0.063]
[1739226181334,8.1468006,200.28,200.27,0.063]
[1739226181634,21.55864913,200.28,200.27,0.063]
[1739226182823,26.55164913,200.28,200.27,0.063]
[1739226183026,26.55164913,200.28,200.2,36.48161138]
[1739226183332,20.0,200.25,200.2,36.48161138]
[1739226183634,0.5210006,200.24,200.2,36.48161138]
[1739226183834,33.41184853,200.25,200.2,36.48161138]
[1739226184015,0.5210006,200.24,200.2,36.48161138]
[1739226185037,4.9942,200.23,200.2,36.48161138]
[1739226185425,20.1083,200.28,200.2,36.48161138]
[1739226185426,4.9935,200.26,200.2,36.48161138]
[1739226185735,0.5210006,200.27,200.2,41.47651138]
[1739226186437,5.5144006,200.27,200.2,41.47651138]
[1739226187819,0.5210006,200.27,200.2,41.47651138]
[1739226188339,5.5142006,200.27,200.2,41.47651138]
[1739226190845,5.5142006,200.27,200.2,41.53951138]
[1739226191424,0.5210006,200.27,200.2,41.53951138]
[1739226192649,5.5143006,200.27,200.2,41.53951138]
[1739226194443,0.5510006,200.28,200.2,41.53951138]
[1739226194748,0.03,200.28,200.2,41.53951138]
[1739226196347,0.03,200.28,200.23,13.41184853]
[1739226197144,0.03,200.28,200.26,20.0]
[1739226197343,0.03,200.28,200.27,13.41184853]
[1739226197928,0.03,200.28,200.27,14.16057142]
[1739226198239,0.03,200.28,200.27,19.15377142]
[1739226198437,0.03,200.3,200.29,33.41184853]
[1739226198639,0.03,200.3,200.29,34.16046169]
[1739226199247,0.03,200.3,200.29,33.41184853]
[1739226199441,0.03,200.3,200.29,13.41184853]
[1739226199754,0.03,200.3,200.29,33.41184853]
[1739226200434,0.03,200.3,200.29,38.40454853]
[1739226202873,0.03,200.3,200.29,18.40454853]
[1739226203969,0.03,200.3,200.29,38.40454853]
[1739226213781,0.03,200.3,200.29,18.40454853]
[1739226215878,0.03,200.3,200.29,38.40454853]
[1739226216073,0.03,200.3,200.29,18.40454853]
[1739226216375,0.03,200.31,200.3,33.41184853]
[1739226216693,0.03,200.36,200.3,36.28585362]
[1739226216898,0.03,200.36,200.3,133.28585362]
[1739226217062,0.03,200.36,200.3,132.53733853]
[1739226217593,0.03,200.36,200.35,20.0]
[1739226217761,0.03,200.36,200.35,33.41184853]
[1739226219389,0.03,200.36,200.35,13.41184853]
[1739226219595,0.03,200.36,200.35,18.40304853]
[1739226220485,0.03,200.36,200.35,38.40304853]
[1739226220963,0.03,200.36,200.35,20.0]
[1739226221606,0.03,200.36,200.32,15.8]
[1739226222066,0.03,200.36,200.33,20.0]
[1739226223164,0.03,200.36,200.33,24.9916]
[1739226224092,0.03,200.36,200.35,13.41184853]
[1739226224270,0.03,200.36,200.34,20.0]
[1739226226470,0.03,200.36,200.35,4.9912]
[1739226236409,0.03,200.36,200.35,18.40304853]
[1739226243798,0.03,200.36,200.34,4.9915]
[1739226244508,0.03,200.36,200.32,97.0]
[1739226244683,0.03,200.36,200.32,101.9917]
[1739226244881,0.03,200.36,200.34,20.0]
[1739226248202,0.03,200.36,200.33,4.9917]
[1739226249094,0.03,200.36,200.34,20.0]
[1739226249914,0.03,200.36,200.32,24.992]
[1739226254797,0.03,200.36,200.32,4.992]
[1739226255005,0.03,200.36,200.34,20.0]
[1739226256006,0.03,200.36,200.32,50.88384853]
[1739226257010,0.03,200.36,200.32,37.472]
[1739226257709,0.03,200.36,200.35,13.41184853]
[1739226258612,0.03,200.36,200.35,18.40304853]
[1739226263714,0.03,200.43,200.38,20.0]
[1739226265315,0.03,200.43,200.39,4.9902]
[1739226265622,0.03,200.43,200.39,17.4658]
[1739226269020,0.03,200.43,200.4,13.41184853]
[1739226270199,0.03,200.43,200.41,4.9897]
[1739226270915,0.03,200.46,200.42,13.41184853]
[1739226272297,0.03,200.46,200.43,4.9892]
[1739226273524,0.03,200.46,200.45,20.0]
[1739226274106,0.03,200.47,200.45,20.0]
[1739226274302,0.03,200.47,200.46,24.9885]
[1739226275830,0.0001,200.47,200.46,38.40034853]
[1739226276199,0.0001,200.49,200.47,14.41184853]
[1739226276418,0.0001,200.49,200.48,14.15972808]
[1739226277404,0.0001,200.49,200.48,19.14772808]
[1739226280226,0.0001,200.49,200.43,4.9892]
[1739226280424,0.0001,200.49,200.38,4.9905]
[1739226280832,0.0001,200.49,200.39,13.41184853]
[1739226281220,0.0001,200.49,200.38,4.9905]
[1739226281527,0.0001,200.49,200.39,13.41184853]
[1739226281528,0.5211006,200.49,200.39,13.41184853]
[1739226281827,0.5211006,200.49,200.42,20.0]
[1739226281828,0.0001,200.49,200.42,20.0]
[1739226282313,0.0001,200.49,200.41,20.0]
[1739226283027,0.0001,200.49,200.42,13.41184853]
[1739226283424,0.5210006,200.48,200.41,20.0]
[1739226284738,0.0001,200.49,200.41,20.0]
[1739226284910,0.5211006,200.49,200.41,20.0]
[1739226285434,5.5089006,200.49,200.41,20.0]
[1739226286626,5.5089006,200.49,200.41,25.0526]
[1739226286824,0.03,200.48,200.42,13.41184853]
[1739226287330,0.03,200.48,200.41,25.0527]
[1739226291235,0.03,200.48,200.41,0.063]
[1739226293915,6.1956,200.47,200.41,0.063]
[1739226294137,0.5210006,200.46,200.41,0.063]
[1739226295240,5.5095006,200.46,200.41,0.063]
[1739226295817,0.5210006,200.46,200.41,0.063]
[1739226296314,5.5096006,200.46,200.41,0.063]
[1739226297337,0.5210006,200.46,200.41,0.063]
[1739226297547,0.0001,200.49,200.41,0.063]
[1739226297548,0.0001,200.49,200.47,20.0]
[1739226297723,0.0001,200.49,200.48,13.41184853]
[1739226298037,0.0001,200.49,200.47,20.0]
[1739226298246,0.0001,200.49,200.44,0.74808695]
[1739226299320,0.0001,200.49,200.48,20.0]
[1739226300626,0.0001,200.49,200.43,15.8]
[1739226300828,0.0001,200.49,200.44,4.989]
[1739226301146,0.0001,200.49,200.45,20.0]
[1739226301436,0.0001,200.49,200.46,13.41184853]
[1739226302424,0.0001,200.49,200.45,20.0]
[1739226302824,0.0001,200.49,200.46,24.9885]
[1739226306628,0.0001,200.49,200.46,27.23680042]
[1739226307524,0.0001,200.49,200.48,4.988]
[1739226308944,0.0001,200.49,200.48,18.39984853]
[1739226316956,0.03,200.57,200.51,20.0]
[1739226317261,0.03,200.57,200.52,20.0]
[1739226318261,0.03,200.57,200.53,17.4536]
[1739226318440,0.03,200.57,200.54,0.74776389]
[1739226318645,0.03,200.57,200.56,20.0]
[1739226320434,0.03,200.57,200.56,24.986]
[1739226324356,0.03,200.57,200.55,4.9862]
[1739226326363,0.03,200.57,200.54,81.2]
[1739226326746,0.03,200.57,200.54,86.1864]
[1739226329342,0.03,200.57,200.54,24.9864]
[1739226332444,0.03,200.57,200.54,20.0]
[1739226332644,0.03,200.57,200.54,24.9864]
[1739226333973,0.03,200.64,200.62,1.0]
[1739226334164,7.65380503,200.77,200.63,8.87758975]
[1739226334465,7.65380503,200.77,200.67,20.0]
[1739226334659,7.65380503,200.77,200.68,25.73018635]
[1739226335266,7.65380503,200.77,200.68,38.18778635]
[1739226337470,7.65380503,200.77,200.72,20.0]
[1739226338679,0.03,200.78,200.72,20.0]
[1739226339564,0.03,200.78,200.73,4.9818]
[1739226339764,0.03,200.78,200.73,24.9818]
[1739226340577,0.03,200.78,200.74,20.0]
[1739226343776,0.03,200.78,200.75,4.9813]
[1739226344754,0.03,200.78,200.76,0.12549]
[1739226344963,0.03,200.78,200.77,20.12549]
[1739226345860,0.03,200.78,200.77,5.10629]
[1739226346976,0.03,200.78,200.77,25.10629]
[1739226347159,0.03,200.78,200.77,5.10629]
[1739226347350,0.03,200.78,200.75,4.9813]
[1739226347885,0.03,200.78,200.75,24.9813]
[1739226352968,0.03,200.78,200.76,20.0]
[1739226353789,0.03,200.78,200.75,4.9813]
[1739226355293,0.03,200.78,200.75,20.0]
[1739226358094,0.03,200.78,200.76,4.981]
[1739226358296,0.03,200.78,200.77,0.12549]
[1739226358497,0.03,200.78,200.77,13.53733853]
[1739226360192,0.03,200.78,200.77,18.51813853]
[1739226360397,3.82,200.94,200.8,20.0]
[1739226360601,13.41184853,200.92,200.8,20.0]
[1739226362793,13.41184853,200.9,200.8,24.9799]
[1739226364205,4.9778,200.89,200.8,24.9799]
[1739226364902,13.41184853,200.9,200.8,24.9799]
[1739226364903,20.0,200.91,200.8,24.9799]
[1739226365087,8.7768,200.93,200.81,13.53733853]
[1739226365293,8.72919166,200.93,200.81,13.53733853]
[1739226366184,21.58234853,200.96,200.83,13.53733853]
[1739226366385,8.7763,200.95,200.83,18.51663853]
[1739226366902,20.0,200.93,200.83,18.51663853]
[1739226367104,20.0,200.92,200.83,18.51663853]
[1739226367502,4.9769,200.93,200.83,18.51663853]
[1739226367886,4.9736,201.06,200.9,20.0]
[1739226368410,4.9736,201.06,200.91,13.53733853]
[1739226368707,33.41184853,201.05,200.91,13.53733853]
[1739226369085,4.9741,201.04,200.92,4.9771]
[1739226369480,20.0,201.03,200.92,20.0]
[1739226369682,13.41184853,201.03,200.92,20.0]
[1739226370140,4.9741,201.04,200.92,13.53733853]
[1739226370483,0.03,200.95,200.92,0.12549]
[1739226370682,0.03,200.95,200.92,18.51443853]
[1739226370915,0.03,200.95,200.92,0.12549]
[1739226371093,0.03,200.95,200.92,20.0]
[1739226371286,0.03,200.95,200.94,20.0]
[1739226371682,0.03,200.95,200.92,0.12549]
[1739226371911,0.03,200.95,200.91,13.53733853]
[1739226373110,0.03,200.95,200.91,18.51453853]
[1739226376813,0.03,200.95,200.91,0.12549]
[1739226377407,25.84654853,201.05,200.91,0.12549]
[1739226378331,30.82034853,201.05,200.91,25.10269]
[1739226379822,30.82034853,201.05,200.91,24.9772]
[1739226380318,30.82034853,201.05,200.91,20.0]
[1739226380496,13.41184853,201.01,200.91,20.0]
[1739226380699,33.41184853,201.02,200.91,20.0]
[1739226380906,37.25184853,201.02,200.91,20.0]
[1739226381108,7.8808,201.01,200.91,20.0]
[1739226381407,7.8808,201.01,200.9,20.0]
[1739226381619,17.4129,201.0,200.9,20.0]
[1739226382023,13.41184853,200.99,200.89,20.0]
[1739226382209,13.41184853,200.99,200.9,0.063]
[1739226382914,13.41184853,200.99,200.9,20.063]
[1739226383315,4.9756,200.98,200.9,20.063]
[1739226384423,4.9756,200.98,200.9,0.063]
[1739226385003,4.9756,200.98,200.9,20.063]
[1739226385831,4.9756,200.98,200.9,0.063]
[1739226386029,13.41184853,200.97,200.9,0.063]
[1739226387205,4.9761,200.96,200.9,0.063]
[1739226388925,13.41184853,200.95,200.9,0.063]
[1739226389326,4.9761,200.96,200.9,0.063]
[1739226389729,41.29264853,200.95,200.9,0.063]
[1739226390115,42.29264853,200.95,200.9,0.063]
[1739226390308,21.29264853,200.95,200.9,0.063]
[1739226391237,13.41184853,200.93,200.9,0.063]
[1739226393434,4.9771,200.92,200.9,0.063]
[1739226394429,13.41184853,200.93,200.9,0.063]
[1739226394633,13.41184853,200.91,200.9,0.063]
[1739226395828,13.41184853,200.91,200.9,0.0001]
[1739226395829,19.25184853,200.91,200.9,0.0001]
[1739226396017,33.41184853,200.88,200.78,0.063]
[1739226396216,13.41184853,200.86,200.78,0.063]
[1739226396925,4.9788,200.85,200.78,0.063]
[1739226397813,18.4163,200.96,200.81,20.0]
[1739226398017,13.41184853,200.95,200.81,20.0]
[1739226399039,13.41184853,200.93,200.82,24.9795]
[1739226406618,13.41184853,200.93,200.82,37.4284]
[1739226407833,13.41184853,200.93,200.82,37.4914]
[1739226409634,38.38854853,200.94,200.82,37.4914]
[1739226411049,33.41184853,200.94,200.82,37.4914]
[1739226416040,38.38844853,200.94,200.82,37.4914]
[1739226417654,33.41184853,200.94,200.82,37.4914]
[1739226420843,38.38844853,200.94,200.82,37.4914]
[1739226422862,38.38844853,200.94,200.83,7.8861]
[1739226423034,38.38844853,200.94,200.84,4.979]
[1739226423758,38.38844853,200.94,200.84,17.4267]
[1739226425557,0.03,200.95,200.84,17.4267]
[1739226425733,0.03,200.95,200.85,0.12549]
[1739226427677,0.03,200.95,200.87,1.6509]
[1739226427966,0.03,200.95,200.89,20.0]
[1739226428969,0.03,200.95,200.9,6.5069]
[1739226429767,0.03,200.95,200.91,4.9773]
[1739226439576,0.03,200.95,200.91,17.4206]
[1739226442760,0.03,200.95,200.92,1.6424]
[1739226442963,0.03,200.95,200.94,20.0]
[1739226445490,0.03,200.95,200.94,24.9766]
[1739226455285,0.03,200.95,200.94,25.10209]
[1739226455491,0.0001,200.95,200.94,25.97390043]
[1739226457395,0.0001,200.95,200.94,25.84841043]
[1739226460208,14.55926597,201.08,200.95,0.25098]
[1739226460392,13.41184853,201.07,200.97,0.12549]
[1739226460591,9.58616597,201.08,200.99,20.12549]
[1739226461876,9.58616597,201.08,201.0,4.9751]
[1739226463595,13.41184853,201.07,201.0,4.9751]
[1739226465783,18.38524853,201.07,201.0,4.9751]
[1739226466189,13.41184853,201.07,201.0,4.9751]
[1739226466890,13.41184853,201.07,201.01,20.0]
[1739226467505,13.41184853,201.07,200.99,20.0]
[1739226467809,13.41184853,201.07,201.01,20.0]
[1739226468506,13.41184853,201.09,201.01,20.0]
[1739226469698,13.41184853,201.11,200.99,20.0]
[1739226469912,18.38424853,201.11,201.01,20.0]
[1739226471913,18.38424853,201.11,201.02,4.9746]
[1739226474414,4.9716,201.14,201.02,17.4111]
[1739226476316,18.38374853,201.13,201.02,17.4111]
[1739226477322,1.6275,201.15,201.05,20.0]
[1739226477488,13.4232,201.24,201.06,8.52003022]
[1739226477694,4.9694,201.23,201.06,8.52003022]
[1739226477901,4.9694,201.23,201.09,20.0]
[1739226479324,13.41184853,201.22,201.1,4.9726]
[1739226480604,13.41184853,201.22,201.09,20.0]
[1739226481307,14.41184853,201.2,201.06,7.7741]
[1739226481505,13.41184853,201.18,201.06,7.7741]
[1739226481909,13.41184853,201.16,201.06,1.5786]
[1739226482316,13.41184853,201.16,201.01,7.89959]
[1739226482737,13.41184853,201.13,201.01,1.5786]
[1739226482907,17.13184853,201.13,201.01,1.5786]
[1739226483434,13.41184853,201.11,201.01,1.5786]
[1739226484720,13.41184853,201.11,200.96,7.7741]
[1739226485107,13.41184853,201.11,200.96,12.7502]
[1739226485732,4.9726,201.1,200.99,20.0]
[1739226486106,4.4308,201.1,200.99,20.0]
[1739226487027,13.41184853,201.14,200.99,20.0]
[1739226487227,13.4285,201.15,201.0,20.0]
[1739226487228,13.41184853,201.12,201.0,20.0]
[1739226487929,13.41184853,201.12,200.99,20.0]
[1739226488315,1.0,201.11,200.99,20.0]
[1739226489422,13.41184853,201.09,200.99,20.0]
[1739226490840,13.41184853,201.09,200.97,4.9756]
[1739226491331,13.41184853,201.09,200.96,12.7501]
[1739226491518,13.41184853,201.07,200.96,12.7501]
[1739226491711,13.41184853,201.07,200.95,0.063]
[1739226491926,13.41184853,201.05,200.95,0.063]
[1739226492435,14.41184853,201.05,200.95,0.063]
[1739226493937,13.41184853,201.03,200.95,0.063]
[1739226494916,13.41184853,201.01,200.95,0.063]
[1739226496630,4.9751,201.0,200.95,0.063]
[1739226497618,21.27104853,200.99,200.95,0.063]
[1739226499523,13.41184853,200.97,200.95,0.063]
[1739226501636,4.9761,200.96,200.95,0.063]
[1739226502350,16.136,201.03,200.95,0.063]
[1739226503734,13.41184853,201.02,200.95,0.063]
[1739226504938,13.41184853,201.0,200.95,0.063]
[1739226505735,4.9748,201.01,200.95,0.063]
[1739226506458,3.7,201.06,200.95,0.063]
[1739226507043,13.41184853,201.06,200.95,0.063]
[1739226507241,17.11184853,201.06,200.95,0.063]
[1739226507426,13.41184853,201.04,200.95,0.063]
[1739226508125,13.41184853,201.04,200.95,20.063]
[1739226508630,4.9743,201.03,200.96,4.9761]
[1739226509124,18.38594853,201.04,200.96,4.9761]
[1739226511559,8.6531,201.08,200.97,1.6102]
[1739226512151,13.41184853,201.07,200.97,1.6102]
[1739226512538,14.41184853,201.07,200.97,1.6102]
[1739226512930,33.41184853,201.04,200.95,0.063]
[1739226513661,13.41184853,201.02,200.95,0.063]
[1739226515754,30.82294853,201.02,200.95,0.063]
[1739226516153,31.82294853,201.02,200.95,0.063]
[1739226516327,18.38644853,201.02,200.95,0.063]
[1739226521073,13.41184853,201.01,200.95,0.063]
[1739226521942,18.38664853,201.01,200.95,0.063]
[1739226522873,30.82374853,201.01,200.95,0.063]
[1739226527843,21.0,200.98,200.95,0.063]
[1739226528049,13.41184853,200.97,200.95,0.063]
[1739226528361,17.17184853,200.97,200.95,0.063]
[1739226530163,18.38794853,200.96,200.95,0.063]
[1739226534652,25.8721,201.03,200.95,0.063]
[1739226534653,17.4087,201.05,200.95,1.7013]
[1739226535052,13.41184853,201.04,200.95,1.7013]
[1739226535252,17.17184853,201.04,200.95,1.7013]
[1739226535454,13.41184853,201.04,200.95,1.7013]
[1739226536176,13.41184853,201.02,200.95,6.6775]
[1739226537276,13.41184853,201.02,200.95,1.7013]
[1739226537493,18.38654853,201.02,200.95,1.7013]
[1739226540666,13.41184853,201.02,200.95,6.6776]
[1739226541587,20.0,201.06,200.95,6.6776]
[1739226541890,4.974,201.05,200.95,6.6776]
[1739226542092,13.41184853,201.04,200.95,6.6776]
[1739226544283,18.38564853,201.05,200.95,6.6776]
[1739226548289,18.38564853,201.05,200.98,20.0]
[1739226548486,18.38564853,201.05,200.97,4.9756]
[1739226549464,4.9738,201.05,200.99,7.7649]
[1739226550701,13.41184853,201.07,200.99,7.7649]
[1739226552404,4.9731,201.08,200.99,12.7402]
[1739226552604,0.03,201.1,200.99,12.7402]
[1739226553199,0.03,201.1,200.99,7.7649]
[1739226553709,0.03,201.1,200.99,12.7401]
[1739226555098,0.03,201.1,201.02,20.0]
[1739226555395,0.03,201.1,201.03,1.5931]
[1739226556392,0.03,201.1,201.03,6.5674]
[1739226563621,0.03,201.1,201.03,6.5674]
[1739226565338,0.03,201.1,201.03,6.6304]
[1739226572222,0.03,201.1,201.03,1.6561]
[1739226572724,0.03,201.1,201.03,6.6303]
[1739226589226,0.03,201.1,201.03,1.6561]
[1739226590725,0.03,201.1,201.06,20.0]
[1739226591130,0.03,201.1,201.08,1.5538]
[1739226593641,0.03,201.1,201.08,6.5267]
[1739226595917,0.03,201.1,201.09,20.0]
[1739226598135,0.03,201.1,201.08,1.5538]
[1739226604651,0.03,201.1,201.05,20.0]
[1739226606050,0.03,201.1,201.03,6.5911]
[1739226606244,0.03,201.1,201.03,1.6168]
[1739226608952,13.44184853,201.1,201.03,1.6168]
[1739226609251,13.44184853,201.1,201.03,0.063]
[1739226610761,17.405,201.09,201.03,0.063]
[1739226613456,4.9733,201.07,201.03,0.063]
[1739226613659,13.41184853,201.06,201.03,0.063]
[1739226614842,33.41184853,201.04,201.03,0.063]
[1739226615769,38.38594853,201.04,201.03,0.063]
[1739226617069,40.38594853,201.04,201.03,0.0001]
[1739226617241,38.38594853,201.04,201.03,0.0001]
[1739226617637,40.38594853,201.04,201.03,0.0001]
[1739226617889,39.38594853,201.04,201.03,0.0001]
[1739226618679,38.38594853,201.04,201.03,0.0001]
[1739226619062,4.9741,201.04,201.03,0.0001]
[1739226620272,13.41184853,201.06,201.03,0.0001]
[1739226620477,4.9738,201.05,201.03,0.0001]
[1739226621072,4.9728,201.09,201.03,0.0001]
[1739226621451,13.41184853,201.06,201.03,0.0001]
[1739226623385,4.9738,201.05,201.03,0.0001]
[1739226623575,4.9736,201.06,201.03,0.0001]
[1739226625173,0.03,201.06,201.03,0.0001]
[1739226629260,0.03,201.06,201.04,1.5699]
[1739226630175,0.03,201.06,201.05,4.9738]
[1739226631278,0.03,201.06,201.04,6.544]
[1739226640282,0.03,201.06,201.04,1.5699]
[1739226641692,0.03,201.06,201.04,6.544]
[1739226647597,0.03,201.06,201.05,0.74588668]
[1739226647911,0.03,201.06,201.04,7.28983839]
[1739226656999,0.03,201.1,201.08,20.0]
[1739226658308,0.03,201.1,201.09,24.9728]
[1739226673212,0.03,201.1,201.09,38.38464853]
[1739226675423,0.03,201.1,201.09,24.9728]
[1739226715760,0.03,201.1,201.09,38.51013853]
[1739226717851,0.0001,201.1,201.09,38.51013853]
[1739226718549,0.0001,201.13,201.12,33.41184853]
[1739226718750,0.0001,201.13,201.12,34.15728911]
[1739226720446,0.0001,201.13,201.12,39.12938911]
[1739226722033,0.0001,201.13,201.12,39.25487911]
[1739226723045,0.0001,201.13,201.12,39.12938911]
[1739226725359,0.0001,201.13,201.12,25.71754058]
[1739226729966,0.0001,201.13,201.12,24.9721]
[1739226732451,0.0001,201.13,201.12,25.0351]
[1739226732653,0.0001,201.13,201.12,0.063]
[1739226733954,0.0001,201.13,201.12,5.0351]
[1739226734658,0.0001,201.13,201.12,0.063]
[1739226745176,29.8422,201.13,201.12,0.0001]
[1739226745504,1.0,201.11,201.06,0.063]
[1739226746370,13.41184853,201.1,201.06,0.063]
[1739226746572,33.41184853,201.07,201.06,0.063]
[1739226747849,38.38514853,201.07,201.06,0.063]
[1739226750755,18.38514853,201.07,201.06,0.063]
[1739226753160,38.38514853,201.07,201.06,0.063]
[1739226753761,18.38514853,201.07,201.06,0.063]
[1739226754159,4.9733,201.07,201.06,0.063]
[1739226755175,13.41184853,201.09,201.06,0.063]
[1739226755492,4.9728,201.09,201.06,0.063]
[1739226756663,4.9724,201.11,201.06,0.063]
[1739226756865,17.4034,201.11,201.06,0.063]
[1739226760279,18.4034,201.11,201.06,0.063]
[1739226763678,17.4034,201.11,201.06,0.063]
[1739226765698,18.4034,201.11,201.06,0.063]
[1739226766888,20.0,201.07,201.06,0.063]
[1739226767471,33.41184853,201.07,201.06,0.063]
[1739226768404,38.38514853,201.07,201.06,0.063]
[1739226768897,14.41184853,201.06,201.03,0.0001]
[1739226769306,13.41184853,201.06,201.03,0.0001]
[1739226770881,13.41184853,201.04,201.03,0.0001]
[1739226772183,18.38594853,201.04,201.03,0.0001]
[1739226776114,19.38594853,201.04,201.03,0.0001]
[1739226776313,4.9728,201.09,201.03,0.0001]
[1739226776613,20.0,201.07,201.03,0.0001]
[1739226778615,4.9736,201.06,201.03,0.0001]
[1739226785114,13.41184853,201.05,201.03,0.0001]
[1739226785315,4.9741,201.04,201.03,0.0001]
[1739226786809,13.41184853,201.06,201.03,0.0001]
[1739226787024,4.9736,201.06,201.03,0.0001]
[1739226790293,18.38544853,201.06,201.03,0.0001]
[1739226790620,4.9741,201.04,201.03,0.0001]
[1739226791516,18.38544853,201.06,201.03,0.0001]
[1739226798228,33.41184853,201.04,201.03,0.0001]
[1739226800729,38.38594853,201.04,201.03,0.0001]
[1739226802725,39.38594853,201.04,201.03,0.0001]
[1739226807656,122.48594853,201.04,201.03,0.0001]
[1739226809445,123.72529484,201.04,201.03,0.0001]
[1739226818051,2.0,201.01,200.95,0.063]
[1739226818228,13.41184853,200.99,200.95,0.063]
[1739226820757,13.41184853,200.97,200.95,0.063]
[1739226822656,4.9761,200.96,200.95,0.063]
[1739226852572,18.38794853,200.96,200.95,0.063]
[1739226853170,101.48794853,200.96,200.95,0.063]
[1739226859896,102.48794853,200.96,200.95,0.0001]
[1739226862780,106.10794853,200.96,200.95,0.0001]
[1739226864477,105.10794853,200.96,200.95,0.0001]
[1739226868295,101.48794853,200.96,200.95,0.0001]
[1739226891117,5.84183376,200.99,200.95,0.0001]
[1739226891118,83.1,200.99,200.95,0.0001]
[1739226891412,4.9756,200.98,200.95,0.0001]
[1739226891616,13.41184853,200.97,200.95,0.0001]
[1739226892408,13.41184853,200.98,200.95,0.0001]
[1739226892595,18.38744853,200.98,200.95,0.0001]
[1739226893810,13.41184853,200.98,200.95,0.0001]
[1739226894207,83.1,200.99,200.95,0.0001]
[1739226896810,13.41184853,201.01,200.95,0.0001]
[1739226898815,18.38684853,201.01,200.95,0.0001]
[1739226900406,19.38684853,201.01,200.95,0.0001]
[1739226900622,30.82394853,201.01,200.95,0.0001]
[1739226902720,18.38714853,200.99,200.95,0.0001]
[1739226903226,30.82554853,200.99,200.95,0.0001]
[1739226904827,17.4137,200.99,200.95,0.0001]
[1739226905120,13.41184853,200.98,200.95,0.0001]
[1739226907022,18.38744853,200.98,200.95,0.0001]
[1739226908593,13.41184853,200.96,200.95,0.0001]
[1739226909227,18.38794853,200.96,200.95,0.0001]
[1739226912224,4.9761,200.96,200.95,0.0001]
[1739226921804,5.0061,200.96,200.95,0.0001]
[1739226934350,18.41794853,200.96,200.95,0.0001]
[1739226936761,19.41794853,200.96,200.95,0.0001]
[1739226937256,18.41794853,200.96,200.95,0.0001]
[1739226938549,19.41794853,200.96,200.95,0.0001]